[Event "*** SCC Grand Prix: Titled Tuesday Blitz"]
[Site "Chess.com"]
[Date "2020.09.29"]
[Round "3"]
[White "vanyakuba"]
[Black "chessmadara"]
[Result "1/2-1/2"]
[WhiteElo "2457"]
[BlackElo "2138"]
[TimeControl "180+1"]
[EndTime "10:28:21 PDT"]
[Termination "Game drawn by repetition"]

1. e4 {[%clk 0:03:00.9]} 1... c5 {[%clk 0:02:59.5]} 2. Nc3 {[%clk 0:02:58.6]}
2... d6 {[%clk 0:02:58]} 3. f4 {[%clk 0:02:58.6]} 3... Nc6 {[%clk 0:02:54.4]} 4.
Nf3 {[%clk 0:02:58.2]} 4... g6 {[%clk 0:02:54.2]} 5. Bc4 {[%clk 0:02:56.6]} 5...
Bg7 {[%clk 0:02:53.6]} 6. O-O {[%clk 0:02:56.3]} 6... e6 {[%clk 0:02:53.4]} 7.
f5 {[%clk 0:02:56.4]} 7... exf5 {[%clk 0:02:46]} 8. d3 {[%clk 0:02:56.4]} 8...
Nge7 {[%clk 0:02:43.5]} 9. Qe1 {[%clk 0:02:55.4]} 9... fxe4 {[%clk 0:02:36.8]}
10. dxe4 {[%clk 0:02:33.4]} 10... O-O {[%clk 0:02:08.6]} 11. Qh4 {[%clk
0:02:29.2]} 11... Ne5 {[%clk 0:01:54.5]} 12. Nxe5 {[%clk 0:01:21.7]} 12... dxe5
{[%clk 0:01:54.1]} 13. Kh1 {[%clk 0:01:14.6]} 13... Nc6 {[%clk 0:01:51.3]} 14.
Bg5 {[%clk 0:01:14.1]} 14... Qd4 {[%clk 0:01:41.4]} 15. Nd5 {[%clk 0:00:52.3]}
15... Qxc4 {[%clk 0:01:24.1]} 16. Nf6+ {[%clk 0:00:52.2]} 16... Bxf6 {[%clk
0:01:23.7]} 17. Bxf6 {[%clk 0:00:53.1]} 17... h5 {[%clk 0:01:22.2]} 18. Qg5
{[%clk 0:00:22.3]} 18... Kh7 {[%clk 0:01:22.1]} 19. Rf3 {[%clk 0:00:16]} 19...
Qxe4 {[%clk 0:01:18.1]} 20. Raf1 {[%clk 0:00:15.5]} 20... Qg4 {[%clk 0:01:12.2]}
21. Qe3 {[%clk 0:00:10.1]} 21... Bf5 {[%clk 0:00:37]} 22. h3 {[%clk 0:00:10]}
22... Qd4 {[%clk 0:00:36.5]} 23. Qg5 {[%clk 0:00:10.1]} 23... Be4 {[%clk
0:00:32.3]} 24. c3 {[%clk 0:00:06]} 24... Qd5 {[%clk 0:00:29.8]} 25. R3f2 {[%clk
0:00:05.8]} 25... Bd3 {[%clk 0:00:23.4]} 26. Re1 {[%clk 0:00:04.2]} 26... Rae8
{[%clk 0:00:18.4]} 27. Kh2 {[%clk 0:00:04.4]} 27... Qd6 {[%clk 0:00:17.6]} 28.
Kg1 {[%clk 0:00:03.2]} 28... e4 {[%clk 0:00:17.2]} 29. Qh4 {[%clk 0:00:02.6]}
29... e3 {[%clk 0:00:14.9]} 30. Rf3 {[%clk 0:00:02]} 30... Ne5 {[%clk
0:00:11.1]} 31. Rg3 {[%clk 0:00:02.1]} 31... Bf5 {[%clk 0:00:09.7]} 32. Rgxe3
{[%clk 0:00:02.2]} 32... Qd2 {[%clk 0:00:06.6]} 33. Rxe5 {[%clk 0:00:02]} 33...
Rxe5 {[%clk 0:00:06.1]} 34. Rxe5 {[%clk 0:00:02.9]} 34... Qd1+ {[%clk
0:00:05.4]} 35. Kh2 {[%clk 0:00:03.5]} 35... Qd6 {[%clk 0:00:05.5]} 36. Qg5
{[%clk 0:00:01.7]} 36... Re8 {[%clk 0:00:05.2]} 37. Kg1 {[%clk 0:00:01.6]} 37...
Rxe5 {[%clk 0:00:05]} 38. Bxe5 {[%clk 0:00:02.3]} 38... Qxe5 {[%clk 0:00:05.3]}
39. Qd8 {[%clk 0:00:03]} 39... Qe1+ {[%clk 0:00:04.9]} 40. Kh2 {[%clk
0:00:03.6]} 40... Qe5+ {[%clk 0:00:05.8]} 41. Kg1 {[%clk 0:00:03.6]} 41... Qe3+
{[%clk 0:00:06.5]} 42. Kh2 {[%clk 0:00:03.7]} 42... Qf4+ {[%clk 0:00:07.1]} 43.
Kg1 {[%clk 0:00:03.7]} 43... Qc1+ {[%clk 0:00:07.6]} 44. Kh2 {[%clk 0:00:04.2]}
44... Qxb2 {[%clk 0:00:08.3]} 45. Qf6 {[%clk 0:00:04.3]} 45... Qb6 {[%clk
0:00:04.3]} 46. Qxf7+ {[%clk 0:00:04]} 46... Kh6 {[%clk 0:00:04.5]} 47. Qf8+
{[%clk 0:00:04.4]} 47... Kh7 {[%clk 0:00:04.5]} 48. Qf7+ {[%clk 0:00:04.4]}
48... Kh8 {[%clk 0:00:03.9]} 49. Qf8+ {[%clk 0:00:04.9]} 49... Kh7 {[%clk
0:00:04.3]} 50. Qf7+ {[%clk 0:00:05.5]} 1/2-1/2

[Event "*** SCC Grand Prix: Titled Tuesday Blitz"]
[Site "Chess.com"]
[Date "2020.09.29"]
[Round "3"]
[White "Arjun2002"]
[Black "guillembaches"]
[Result "1-0"]
[WhiteElo "2684"]
[BlackElo "2424"]
[TimeControl "180+1"]
[EndTime "10:28:22 PDT"]
[Termination "Arjun2002 won by checkmate"]

1. d4 {[%clk 0:02:58.6]} 1... d5 {[%clk 0:02:59.5]} 2. Bf4 {[%clk 0:02:57]} 2...
e6 {[%clk 0:02:55.3]} 3. e3 {[%clk 0:02:56.2]} 3... Bd6 {[%clk 0:02:55.4]} 4.
Nf3 {[%clk 0:02:55.1]} 4... Nf6 {[%clk 0:02:55]} 5. Bd3 {[%clk 0:02:54.1]} 5...
O-O {[%clk 0:02:54.6]} 6. c3 {[%clk 0:02:51.3]} 6... c5 {[%clk 0:02:53.4]} 7.
Nbd2 {[%clk 0:02:50.6]} 7... Nc6 {[%clk 0:02:52.7]} 8. Ne5 {[%clk 0:02:46.6]}
8... Ne7 {[%clk 0:02:46]} 9. g4 {[%clk 0:02:40]} 9... b6 {[%clk 0:02:38.8]} 10.
g5 {[%clk 0:02:32.5]} 10... Nd7 {[%clk 0:02:38.4]} 11. h4 {[%clk 0:02:32.7]}
11... Bxe5 {[%clk 0:02:14.6]} 12. dxe5 {[%clk 0:02:29.7]} 12... Nc6 {[%clk
0:02:11.4]} 13. Nf3 {[%clk 0:02:16.9]} 13... Qc7 {[%clk 0:02:10.7]} 14. Qc2
{[%clk 0:02:15.8]} 14... g6 {[%clk 0:01:55.9]} 15. h5 {[%clk 0:02:15.5]} 15...
Ndxe5 {[%clk 0:01:52.5]} 16. Nxe5 {[%clk 0:02:08.7]} 16... Nxe5 {[%clk
0:01:52.3]} 17. hxg6 {[%clk 0:02:08.8]} 17... fxg6 {[%clk 0:01:45.3]} 18. Bxe5
{[%clk 0:01:36.5]} 18... Qxe5 {[%clk 0:01:44.3]} 19. O-O-O {[%clk 0:01:37.1]}
19... c4 {[%clk 0:01:34.8]} 20. Bf1 {[%clk 0:01:20.4]} 20... Bd7 {[%clk
0:01:13.4]} 21. Bh3 {[%clk 0:01:05.1]} 21... Qxg5 {[%clk 0:01:06.2]} 22. Rdg1
{[%clk 0:01:04.3]} 22... Qf6 {[%clk 0:01:04.5]} 23. f4 {[%clk 0:01:04.3]} 23...
b5 {[%clk 0:00:59]} 24. Qh2 {[%clk 0:01:04]} 24... Rf7 {[%clk 0:00:55.5]} 25.
Rg5 {[%clk 0:00:58.6]} 25... b4 {[%clk 0:00:53.5]} 26. cxb4 {[%clk 0:00:58]}
26... Rb8 {[%clk 0:00:52.8]} 27. a3 {[%clk 0:00:57.4]} 27... c3 {[%clk
0:00:47.4]} 28. Re5 {[%clk 0:00:52]} 28... cxb2+ {[%clk 0:00:42.7]} 29. Qxb2
{[%clk 0:00:51]} 29... a5 {[%clk 0:00:40.5]} 30. Kd2 {[%clk 0:00:48.1]} 30...
axb4 {[%clk 0:00:39.9]} 31. axb4 {[%clk 0:00:48.1]} 31... Qe7 {[%clk 0:00:36.9]}
32. Rb1 {[%clk 0:00:47.5]} 32... Qd6 {[%clk 0:00:34.5]} 33. Qd4 {[%clk
0:00:46.2]} 33... Ra8 {[%clk 0:00:27.4]} 34. Rb2 {[%clk 0:00:45.2]} 34... Rff8
{[%clk 0:00:22.8]} 35. b5 {[%clk 0:00:40.7]} 35... Rfb8 {[%clk 0:00:15.1]} 36.
b6 {[%clk 0:00:40.7]} 36... Ra6 {[%clk 0:00:14.8]} 37. b7 {[%clk 0:00:33.1]}
37... Qc7 {[%clk 0:00:14.1]} 38. Bf1 {[%clk 0:00:17.2]} 38... Rc6 {[%clk
0:00:11.8]} 39. Bd3 {[%clk 0:00:15]} 39... Rxb7 {[%clk 0:00:11.4]} 40. Rxb7
{[%clk 0:00:14.8]} 40... Qxb7 {[%clk 0:00:12.3]} 41. e4 {[%clk 0:00:15.3]} 41...
Qa8 {[%clk 0:00:10.3]} 42. exd5 {[%clk 0:00:15.3]} 42... Qa2+ {[%clk 0:00:09.3]}
43. Ke3 {[%clk 0:00:15.6]} 43... exd5 {[%clk 0:00:09.7]} 44. Rxd5 {[%clk
0:00:15.4]} 44... Be6 {[%clk 0:00:09.3]} 45. Rd8+ {[%clk 0:00:15.3]} 45... Kf7
{[%clk 0:00:09.6]} 46. Qh8 {[%clk 0:00:15.4]} 46... Qa7+ {[%clk 0:00:08.4]} 47.
Kf3 {[%clk 0:00:14.9]} 47... Bd7 {[%clk 0:00:07.8]} 48. Qxh7+ {[%clk 0:00:13.9]}
48... Ke6 {[%clk 0:00:08.2]} 49. Qxg6+ {[%clk 0:00:13.6]} 49... Kd5 {[%clk
0:00:08.4]} 50. Qe4+ {[%clk 0:00:13.3]} 50... Kd6 {[%clk 0:00:06.7]} 51. Qe5#
{[%clk 0:00:13.6]} 1-0

[Event "*** SCC Grand Prix: Titled Tuesday Blitz"]
[Site "Chess.com"]
[Date "2020.09.29"]
[Round "3"]
[White "tlomigtlis"]
[Black "Rap_woyska"]
[Result "0-1"]
[WhiteElo "2523"]
[BlackElo "2370"]
[TimeControl "180+1"]
[EndTime "10:28:22 PDT"]
[Termination "Rap_woyska won by checkmate"]

1. d4 {[%clk 0:03:00.9]} 1... d5 {[%clk 0:02:58.8]} 2. c4 {[%clk 0:03:01]} 2...
c6 {[%clk 0:02:58.8]} 3. Nf3 {[%clk 0:03:00.8]} 3... Nf6 {[%clk 0:02:58.4]} 4.
Nc3 {[%clk 0:03:01.3]} 4... a6 {[%clk 0:02:57.9]} 5. c5 {[%clk 0:02:59.6]} 5...
b6 {[%clk 0:02:57.2]} 6. cxb6 {[%clk 0:02:57.2]} 6... Qxb6 {[%clk 0:02:58.1]} 7.
Na4 {[%clk 0:02:57.6]} 7... Qa7 {[%clk 0:02:57.3]} 8. Bf4 {[%clk 0:02:56.7]}
8... e6 {[%clk 0:02:56.4]} 9. e3 {[%clk 0:02:56.3]} 9... a5 {[%clk 0:02:55.4]}
10. Bd3 {[%clk 0:02:55.2]} 10... Ba6 {[%clk 0:02:55.3]} 11. O-O {[%clk
0:02:55.2]} 11... Be7 {[%clk 0:02:53.1]} 12. Rc1 {[%clk 0:02:54.7]} 12... O-O
{[%clk 0:01:55.7]} 13. Ne5 {[%clk 0:02:54.2]} 13... Rc8 {[%clk 0:01:52.1]} 14.
Bxa6 {[%clk 0:02:46.8]} 14... Qxa6 {[%clk 0:01:49.2]} 15. f3 {[%clk 0:02:44.8]}
15... Nfd7 {[%clk 0:01:47.1]} 16. Nd3 {[%clk 0:02:41.2]} 16... Nb6 {[%clk
0:01:33.9]} 17. Ndc5 {[%clk 0:02:38.1]} 17... Qa7 {[%clk 0:01:33.5]} 18. b3
{[%clk 0:02:30.9]} 18... N8d7 {[%clk 0:01:32.6]} 19. Nxd7 {[%clk 0:02:27.1]}
19... Nxd7 {[%clk 0:01:19.1]} 20. Qe2 {[%clk 0:02:21.5]} 20... c5 {[%clk
0:01:11.6]} 21. dxc5 {[%clk 0:02:16.5]} 21... Nxc5 {[%clk 0:01:12.1]} 22. Nxc5
{[%clk 0:02:17]} 22... Bxc5 {[%clk 0:01:12.1]} 23. Kh1 {[%clk 0:02:16.6]} 23...
Ba3 {[%clk 0:01:07.6]} 24. Rc2 {[%clk 0:02:14.8]} 24... h6 {[%clk 0:01:03.1]}
25. h4 {[%clk 0:02:13.1]} 25... Qe7 {[%clk 0:01:00.1]} 26. Bg3 {[%clk 0:02:13]}
26... Qf6 {[%clk 0:00:55.5]} 27. Kh2 {[%clk 0:02:09.3]} 27... Qf5 {[%clk
0:00:48]} 28. Rxc8+ {[%clk 0:02:06.8]} 28... Rxc8 {[%clk 0:00:48.9]} 29. Qa6
{[%clk 0:02:06.8]} 29... Rc2 {[%clk 0:00:48.4]} 30. Qxa5 {[%clk 0:02:02.1]}
30... Be7 {[%clk 0:00:33.9]} 31. Rf2 {[%clk 0:01:49.3]} 31... Rc1 {[%clk
0:00:33.6]} 32. Re2 {[%clk 0:01:32.5]} 32... Qb1 {[%clk 0:00:30.1]} 33. Re1
{[%clk 0:01:31.3]} 33... Kh7 {[%clk 0:00:19.8]} 34. Qd2 {[%clk 0:01:25]} 34...
Rxe1 {[%clk 0:00:18.7]} 35. Bxe1 {[%clk 0:01:25.9]} 35... Bf6 {[%clk 0:00:17.6]}
36. b4 {[%clk 0:01:23.4]} 36... h5 {[%clk 0:00:11.1]} 37. a4 {[%clk 0:01:22.7]}
37... Qb3 {[%clk 0:00:10.3]} 38. a5 {[%clk 0:01:20.1]} 38... Qc4 {[%clk
0:00:10.4]} 39. Qf2 {[%clk 0:01:13]} 39... g6 {[%clk 0:00:08.8]} 40. g3 {[%clk
0:01:08.3]} 40... Be5 {[%clk 0:00:08.1]} 41. Kg2 {[%clk 0:01:07.4]} 41... Bd6
{[%clk 0:00:07.6]} 42. Qb2 {[%clk 0:01:06.9]} 42... Qd3 {[%clk 0:00:05.6]} 43.
Bd2 {[%clk 0:01:04.2]} 43... Qe2+ {[%clk 0:00:05.4]} 44. Kg1 {[%clk 0:01:01.6]}
44... Qd1+ {[%clk 0:00:04]} 45. Kf2 {[%clk 0:00:59.9]} 45... Bxg3+ {[%clk
0:00:03.7]} 46. Kxg3 {[%clk 0:00:59.4]} 46... Qg1+ {[%clk 0:00:04.3]} 47. Kf4
{[%clk 0:00:59.7]} 47... Qh2+ {[%clk 0:00:04]} 48. Kg5 {[%clk 0:00:57.2]} 48...
Qg3+ {[%clk 0:00:03.4]} 49. Kf6 {[%clk 0:00:57.4]} 49... Kg8 {[%clk 0:00:03.5]}
50. f4 {[%clk 0:00:46.9]} 50... Qxh4+ {[%clk 0:00:03.4]} 51. Ke5 {[%clk
0:00:47]} 51... Qe7 {[%clk 0:00:03.9]} 52. Kd4 {[%clk 0:00:46.6]} 52... Qf6+
{[%clk 0:00:03.8]} 53. Kc5 {[%clk 0:00:46.9]} 53... Qxb2 {[%clk 0:00:04.5]} 54.
Be1 {[%clk 0:00:45.3]} 54... Qc2+ {[%clk 0:00:05.4]} 55. Kb6 {[%clk 0:00:45]}
55... Qd1 {[%clk 0:00:05.9]} 56. Bh4 {[%clk 0:00:41.8]} 56... Qb3 {[%clk
0:00:05.7]} 57. b5 {[%clk 0:00:41.8]} 57... Qxe3+ {[%clk 0:00:05.6]} 58. Ka6
{[%clk 0:00:41.5]} 58... Qxf4 {[%clk 0:00:06.5]} 59. b6 {[%clk 0:00:41.9]} 59...
Qxh4 {[%clk 0:00:06.3]} 60. Kb7 {[%clk 0:00:40.8]} 60... Qe7+ {[%clk 0:00:06.1]}
61. Ka8 {[%clk 0:00:40.9]} 61... Qd8+ {[%clk 0:00:06]} 62. Ka7 {[%clk 0:00:41]}
62... d4 {[%clk 0:00:06.3]} 63. a6 {[%clk 0:00:41.3]} 63... d3 {[%clk
0:00:07.2]} 64. b7 {[%clk 0:00:41.7]} 64... d2 {[%clk 0:00:07.7]} 65. b8=Q
{[%clk 0:00:41.8]} 65... d1=Q {[%clk 0:00:08.6]} 66. Qg3 {[%clk 0:00:40]} 66...
Q1d7+ {[%clk 0:00:07.4]} 67. Qc7 {[%clk 0:00:40.1]} 67... Q8xc7+ {[%clk
0:00:06.8]} 68. Ka8 {[%clk 0:00:39.9]} 68... Qcc8# {[%clk 0:00:07.7]} 0-1

[Event "*** SCC Grand Prix: Titled Tuesday Blitz"]
[Site "Chess.com"]
[Date "2020.09.29"]
[Round "3"]
[White "jamalm2"]
[Black "krasavetc"]
[Result "0-1"]
[WhiteElo "1714"]
[BlackElo "2305"]
[TimeControl "180+1"]
[EndTime "10:28:24 PDT"]
[Termination "krasavetc won on time"]

1. d4 {[%clk 0:03:00.8]} 1... Nf6 {[%clk 0:02:56.1]} 2. Bg5 {[%clk 0:02:54.9]}
2... e6 {[%clk 0:02:57]} 3. e4 {[%clk 0:02:52.7]} 3... Be7 {[%clk 0:02:56.3]} 4.
f3 {[%clk 0:02:48.3]} 4... O-O {[%clk 0:02:50.3]} 5. Nc3 {[%clk 0:02:44.2]} 5...
d5 {[%clk 0:02:42.5]} 6. e5 {[%clk 0:02:42.4]} 6... Nfd7 {[%clk 0:02:36]} 7.
Bxe7 {[%clk 0:02:41.8]} 7... Qxe7 {[%clk 0:02:35.3]} 8. Bd3 {[%clk 0:02:35.7]}
8... c5 {[%clk 0:02:32.5]} 9. f4 {[%clk 0:02:31.7]} 9... cxd4 {[%clk 0:02:29.4]}
10. Nce2 {[%clk 0:02:28.4]} 10... f6 {[%clk 0:02:26.2]} 11. exf6 {[%clk
0:02:24.2]} 11... Qxf6 {[%clk 0:02:10.7]} 12. Nf3 {[%clk 0:02:20.8]} 12... e5
{[%clk 0:02:09]} 13. fxe5 {[%clk 0:02:18.9]} 13... Nxe5 {[%clk 0:02:06.5]} 14.
O-O {[%clk 0:02:18.5]} 14... Bg4 {[%clk 0:01:51.2]} 15. Nxe5 {[%clk 0:02:10.2]}
15... Qxe5 {[%clk 0:01:49.5]} 16. Rxf8+ {[%clk 0:02:00.3]} 16... Kxf8 {[%clk
0:01:50.4]} 17. Qf1+ {[%clk 0:01:59.4]} 17... Kg8 {[%clk 0:01:47.5]} 18. Ng3
{[%clk 0:01:53.8]} 18... Nc6 {[%clk 0:01:43.8]} 19. Re1 {[%clk 0:01:49.2]} 19...
Rf8 {[%clk 0:01:38.8]} 20. Bxh7+ {[%clk 0:01:27.1]} 20... Kxh7 {[%clk 0:01:35]}
21. Qd3+ {[%clk 0:01:24.6]} 21... Bf5 {[%clk 0:01:29.1]} 22. Rxe5 {[%clk
0:01:12.3]} 22... Bxd3 {[%clk 0:01:22.5]} 23. Rh5+ {[%clk 0:01:11.3]} 23... Kg6
{[%clk 0:01:22.4]} 24. cxd3 {[%clk 0:01:10.7]} 24... Nb4 {[%clk 0:01:21.2]} 25.
h4 {[%clk 0:01:02.4]} 25... Rf4 {[%clk 0:01:09.2]} 26. Rg5+ {[%clk 0:01:00.2]}
26... Kf7 {[%clk 0:01:08.4]} 27. Rxg7+ {[%clk 0:00:57.3]} 27... Kxg7 {[%clk
0:00:59.1]} 28. Nh5+ {[%clk 0:00:56.6]} 28... Kg6 {[%clk 0:00:58.4]} 29. Nxf4+
{[%clk 0:00:56.2]} 29... Kf5 {[%clk 0:00:59.3]} 30. g3 {[%clk 0:00:55.1]} 30...
Nxa2 {[%clk 0:00:54.9]} 31. h5 {[%clk 0:00:51.8]} 31... Nb4 {[%clk 0:00:30]} 32.
h6 {[%clk 0:00:47.9]} 32... Kf6 {[%clk 0:00:26.9]} 33. g4 {[%clk 0:00:42.4]}
33... Nc6 {[%clk 0:00:18]} 34. g5+ {[%clk 0:00:40.9]} 34... Kf7 {[%clk
0:00:17.1]} 35. g6+ {[%clk 0:00:39.1]} 35... Kf6 {[%clk 0:00:14.8]} 36. h7
{[%clk 0:00:27.7]} 36... Kg7 {[%clk 0:00:13.9]} 37. Nh5+ {[%clk 0:00:24.4]}
37... Kh8 {[%clk 0:00:12.2]} 38. Nf4 {[%clk 0:00:18]} 38... Ne5 {[%clk
0:00:11.5]} 39. Kf2 {[%clk 0:00:14.8]} 39... Kg7 {[%clk 0:00:09]} 40. Kg3 {[%clk
0:00:11.8]} 40... a5 {[%clk 0:00:08.4]} 41. Kh4 {[%clk 0:00:10.5]} 41... b5
{[%clk 0:00:05.7]} 42. Kg5 {[%clk 0:00:07.7]} 42... Nxg6 {[%clk 0:00:06.1]} 43.
Nxg6 {[%clk 0:00:03.7]} 43... Kxh7 {[%clk 0:00:07]} 44. Nf4 {[%clk 0:00:01.8]}
44... b4 {[%clk 0:00:07.9]} 0-1

[Event "*** SCC Grand Prix: Titled Tuesday Blitz"]
[Site "Chess.com"]
[Date "2020.09.29"]
[Round "3"]
[White "Onischuk_V"]
[Black "Ziachess74"]
[Result "1-0"]
[WhiteElo "2893"]
[BlackElo "2657"]
[TimeControl "180+1"]
[EndTime "10:28:25 PDT"]
[Termination "Onischuk_V won by resignation"]

1. e4 {[%clk 0:03:00.1]} 1... c5 {[%clk 0:02:57.2]} 2. Nc3 {[%clk 0:03:00.1]}
2... Nc6 {[%clk 0:02:55.5]} 3. Bb5 {[%clk 0:03:00.7]} 3... Nd4 {[%clk
0:02:52.7]} 4. Bc4 {[%clk 0:03:00.7]} 4... e6 {[%clk 0:02:50.9]} 5. Nf3 {[%clk
0:02:48.4]} 5... Nf6 {[%clk 0:02:41.5]} 6. O-O {[%clk 0:02:45.9]} 6... a6 {[%clk
0:02:40.8]} 7. a4 {[%clk 0:02:41.6]} 7... d5 {[%clk 0:02:36.2]} 8. exd5 {[%clk
0:02:31]} 8... exd5 {[%clk 0:02:35.8]} 9. Ba2 {[%clk 0:02:30.8]} 9... Be7 {[%clk
0:02:31.2]} 10. Nxd4 {[%clk 0:02:19.4]} 10... cxd4 {[%clk 0:02:30.4]} 11. Ne2
{[%clk 0:02:20]} 11... d3 {[%clk 0:02:30.1]} 12. cxd3 {[%clk 0:02:19.1]} 12...
Bf5 {[%clk 0:02:22.7]} 13. Qb3 {[%clk 0:02:14.7]} 13... O-O {[%clk 0:02:19.5]}
14. Ng3 {[%clk 0:02:05.8]} 14... Bg6 {[%clk 0:02:16]} 15. f4 {[%clk 0:02:05.4]}
15... Bc5+ {[%clk 0:02:11.1]} 16. Kh1 {[%clk 0:02:00.4]} 16... Ng4 {[%clk
0:02:11]} 17. d4 {[%clk 0:01:27.5]} 17... Bxd4 {[%clk 0:01:43.9]} 18. h3 {[%clk
0:01:27]} 18... Nf2+ {[%clk 0:01:26.4]} 19. Kh2 {[%clk 0:01:24.9]} 19... h5
{[%clk 0:00:36.1]} 20. f5 {[%clk 0:01:06.7]} 20... h4 {[%clk 0:00:25.8]} 21.
fxg6 {[%clk 0:00:50.6]} 21... hxg3+ {[%clk 0:00:24.2]} 22. Qxg3 {[%clk
0:00:50.6]} 22... Qf6 {[%clk 0:00:21.4]} 23. Qf3 {[%clk 0:00:24.2]} 23... fxg6
{[%clk 0:00:13.2]} 24. Bxd5+ {[%clk 0:00:22.4]} 24... Kh7 {[%clk 0:00:12.4]} 25.
Qxf6 {[%clk 0:00:21.8]} 25... Rxf6 {[%clk 0:00:13.3]} 26. Bf3 {[%clk 0:00:21.8]}
26... g5 {[%clk 0:00:11.9]} 27. Ra3 {[%clk 0:00:20.9]} 27... g4 {[%clk
0:00:11.6]} 28. hxg4 {[%clk 0:00:20.2]} 28... Nxg4+ {[%clk 0:00:09.6]} 29. Kg3
{[%clk 0:00:20.3]} 29... Nh6 {[%clk 0:00:08.3]} 30. Be4+ {[%clk 0:00:20.4]}
30... Kg8 {[%clk 0:00:08.4]} 31. Rxf6 {[%clk 0:00:20.9]} 31... gxf6 {[%clk
0:00:08.8]} 32. Rb3 {[%clk 0:00:20.9]} 32... Be5+ {[%clk 0:00:09.2]} 33. Kf3
{[%clk 0:00:20.8]} 33... Rc8 {[%clk 0:00:09.5]} 34. Rc3 {[%clk 0:00:19.7]} 34...
Bxc3 {[%clk 0:00:08.8]} 35. dxc3 {[%clk 0:00:20.1]} 35... Nf7 {[%clk 0:00:09.5]}
36. Bxb7 {[%clk 0:00:20.3]} 36... Rc7 {[%clk 0:00:10.4]} 37. Bd5 {[%clk
0:00:20.1]} 37... Kg7 {[%clk 0:00:10.2]} 38. Bf4 {[%clk 0:00:19.7]} 38... Ne5+
{[%clk 0:00:11.1]} 39. Bxe5 {[%clk 0:00:19.8]} 39... fxe5 {[%clk 0:00:11.9]} 40.
c4 {[%clk 0:00:19.3]} 40... Kf6 {[%clk 0:00:12.2]} 41. b4 {[%clk 0:00:19.1]}
41... Rg7 {[%clk 0:00:09.8]} 42. b5 {[%clk 0:00:18.7]} 42... axb5 {[%clk
0:00:09.9]} 43. axb5 {[%clk 0:00:17.9]} 43... Ke7 {[%clk 0:00:10]} 44. b6 {[%clk
0:00:17.9]} 44... Kd6 {[%clk 0:00:09.9]} 45. g4 {[%clk 0:00:17.5]} 45... Re7
{[%clk 0:00:08.8]} 46. g5 {[%clk 0:00:15.6]} 46... Re8 {[%clk 0:00:09.7]} 47. g6
{[%clk 0:00:12.8]} 47... Re7 {[%clk 0:00:09.4]} 48. Ke4 {[%clk 0:00:12.4]} 48...
Rg7 {[%clk 0:00:08.6]} 49. Kf5 {[%clk 0:00:12.1]} 49... Kc5 {[%clk 0:00:07.3]}
50. b7 {[%clk 0:00:12]} 1-0

[Event "*** SCC Grand Prix: Titled Tuesday Blitz"]
[Site "Chess.com"]
[Date "2020.09.29"]
[Round "3"]
[White "Kotofeyca"]
[Black "Sesleria"]
[Result "1/2-1/2"]
[WhiteElo "2338"]
[BlackElo "2102"]
[TimeControl "180+1"]
[EndTime "10:28:29 PDT"]
[Termination "Game drawn - insufficient material"]

1. d4 {[%clk 0:03:00.9]} 1... Nf6 {[%clk 0:02:56.2]} 2. c4 {[%clk 0:03:00.9]}
2... e6 {[%clk 0:02:55.1]} 3. Nf3 {[%clk 0:03:00.7]} 3... d5 {[%clk 0:02:54.6]}
4. Nc3 {[%clk 0:03:00]} 4... c6 {[%clk 0:02:54.5]} 5. cxd5 {[%clk 0:02:59.8]}
5... exd5 {[%clk 0:02:54.1]} 6. Bg5 {[%clk 0:03:00]} 6... Be7 {[%clk 0:02:54]}
7. Qc2 {[%clk 0:02:59.4]} 7... Na6 {[%clk 0:02:45.5]} 8. a3 {[%clk 0:02:53.5]}
8... Nc7 {[%clk 0:02:44.5]} 9. e3 {[%clk 0:02:53.5]} 9... Ne6 {[%clk 0:02:41]}
10. Bh4 {[%clk 0:02:51]} 10... O-O {[%clk 0:02:38.5]} 11. Bd3 {[%clk 0:02:50.4]}
11... g6 {[%clk 0:02:38.6]} 12. O-O {[%clk 0:02:47.7]} 12... a5 {[%clk 0:02:38]}
13. Ne5 {[%clk 0:02:46.1]} 13... Ng7 {[%clk 0:02:36.7]} 14. Na4 {[%clk
0:02:01.4]} 14... Bf5 {[%clk 0:02:09.5]} 15. Nc5 {[%clk 0:02:00.7]} 15... Bxd3
{[%clk 0:01:49.8]} 16. Nexd3 {[%clk 0:01:42.4]} 16... b6 {[%clk 0:01:24.8]} 17.
Na4 {[%clk 0:01:41.7]} 17... Rc8 {[%clk 0:01:23.1]} 18. Qb3 {[%clk 0:01:32.7]}
18... b5 {[%clk 0:01:20.3]} 19. Nac5 {[%clk 0:01:32.8]} 19... a4 {[%clk
0:01:18.4]} 20. Qc2 {[%clk 0:01:32.5]} 20... Nf5 {[%clk 0:01:18.6]} 21. Bg5
{[%clk 0:01:24.8]} 21... Ne4 {[%clk 0:01:13.7]} 22. Bxe7 {[%clk 0:01:20.6]}
22... Qxe7 {[%clk 0:01:13.6]} 23. Rae1 {[%clk 0:01:10.4]} 23... Nfd6 {[%clk
0:01:10.6]} 24. f3 {[%clk 0:01:02.2]} 24... Nxc5 {[%clk 0:01:04.1]} 25. Nxc5
{[%clk 0:01:03.1]} 25... f5 {[%clk 0:00:55.9]} 26. e4 {[%clk 0:00:53.6]} 26...
fxe4 {[%clk 0:00:55.2]} 27. fxe4 {[%clk 0:00:54.5]} 27... Rxf1+ {[%clk
0:00:55.1]} 28. Kxf1 {[%clk 0:00:52.7]} 28... Qf6+ {[%clk 0:00:51.1]} 29. Qf2
{[%clk 0:00:47.8]} 29... Qxf2+ {[%clk 0:00:42.3]} 30. Kxf2 {[%clk 0:00:48.7]}
30... dxe4 {[%clk 0:00:39.7]} 31. Nxe4 {[%clk 0:00:46.4]} 31... Nf5 {[%clk
0:00:30.1]} 32. Rd1 {[%clk 0:00:32.2]} 32... Rd8 {[%clk 0:00:29.1]} 33. d5
{[%clk 0:00:30.6]} 33... cxd5 {[%clk 0:00:20.2]} 34. Rxd5 {[%clk 0:00:30.5]}
34... Rxd5 {[%clk 0:00:20.1]} 35. Nf6+ {[%clk 0:00:31.1]} 35... Kf7 {[%clk
0:00:19.9]} 36. Nxd5 {[%clk 0:00:32]} 36... Nd6 {[%clk 0:00:17.8]} 37. Ke2
{[%clk 0:00:24.5]} 37... Nc4 {[%clk 0:00:16.8]} 38. Nc7 {[%clk 0:00:20.6]} 38...
Nxb2 {[%clk 0:00:17]} 39. Nxb5 {[%clk 0:00:20.5]} 39... Nc4 {[%clk 0:00:17.6]}
40. Kd3 {[%clk 0:00:20]} 40... Nb6 {[%clk 0:00:16.4]} 41. Kd4 {[%clk 0:00:19]}
41... Ke6 {[%clk 0:00:16.3]} 42. Kc5 {[%clk 0:00:19.8]} 42... Nd5 {[%clk
0:00:14.8]} 43. Nd4+ {[%clk 0:00:17.3]} 43... Ke5 {[%clk 0:00:14.9]} 44. Nc6+
{[%clk 0:00:17.8]} 44... Ke4 {[%clk 0:00:15.1]} 45. Nb4 {[%clk 0:00:17.9]} 45...
Nc3 {[%clk 0:00:14.1]} 46. Nc6 {[%clk 0:00:14.3]} 46... Nb1 {[%clk 0:00:13.7]}
47. Kb4 {[%clk 0:00:13.7]} 47... Ke3 {[%clk 0:00:13.7]} 48. Kxa4 {[%clk
0:00:13.5]} 48... Kf2 {[%clk 0:00:13.5]} 49. g4 {[%clk 0:00:13.5]} 49... Kg2
{[%clk 0:00:13.1]} 50. Kb4 {[%clk 0:00:12.3]} 50... Nxa3 {[%clk 0:00:11.6]} 51.
Kxa3 {[%clk 0:00:13.2]} 51... Kxh2 {[%clk 0:00:11.7]} 52. Ne5 {[%clk 0:00:11.7]}
52... Kg3 {[%clk 0:00:11.2]} 53. Kb4 {[%clk 0:00:11.4]} 53... Kf4 {[%clk
0:00:11.5]} 54. Nd3+ {[%clk 0:00:08.9]} 54... Kxg4 {[%clk 0:00:11.7]} 55. Kc4
{[%clk 0:00:09.8]} 55... Kf3 {[%clk 0:00:10.8]} 56. Kd4 {[%clk 0:00:10.7]} 56...
h5 {[%clk 0:00:10.8]} 57. Ne5+ {[%clk 0:00:10.6]} 57... Kf2 {[%clk 0:00:09.4]}
58. Nxg6 {[%clk 0:00:11.5]} 58... Kg3 {[%clk 0:00:09.2]} 59. Ke4 {[%clk
0:00:10.9]} 59... Kg4 {[%clk 0:00:09.5]} 60. Ne5+ {[%clk 0:00:10.5]} 60... Kg3
{[%clk 0:00:09.6]} 61. Nf3 {[%clk 0:00:09.4]} 61... h4 {[%clk 0:00:09.4]} 62.
Nxh4 {[%clk 0:00:09.3]} 1/2-1/2